[Event "Titled Tuesday Blitz November 22 Early 2022"]
[White "Al-Tarboush, Ward"]
[Black "Chuemsakul, Sarocha"]
[WhiteFideId "7601450"]
[BlackFideId "6203710"]
[WhiteElo "2273"]
[BlackElo "1686"]
[Result "1-0"]
[Round "09"]
[TimeControl "180+1"]
[Date "2022.11.23"]
[WhiteClock "0:02:02"]
[BlackClock "0:00:13"]

1. e4 {[%clk 0:02:58]}  c5 {[%clk 0:02:59]} 2. Nf3 {[%clk 0:02:59]}  Nf6 {[%clk 0:02:59]} 3. e5 {[%clk 0:02:59]}  Nd5 {[%clk 0:02:59]} 4. Nc3 {[%clk 0:03:00]}  e6 {[%clk 0:02:58]} 5. Nxd5 {[%clk 0:03:00]}  exd5 {[%clk 0:02:59]} 6. d4 {[%clk 0:03:00]}  Nc6 {[%clk 0:02:59]} 7. dxc5 {[%clk 0:03:00]}  Bxc5 {[%clk 0:03:00]} 8. Qxd5 {[%clk 0:02:59]}  Qb6 {[%clk 0:02:59]} 9. Qd2 {[%clk 0:02:48]}  O-O {[%clk 0:02:50]} 10. Bc4 {[%clk 0:02:46]}  Nd4 {[%clk 0:02:20]} 11. Nxd4 {[%clk 0:02:42]}  Bxd4 {[%clk 0:02:20]} 12. O-O {[%clk 0:02:36]}  Bxe5 {[%clk 0:02:18]} 13. Qd3 {[%clk 0:02:26]}  Qc7 {[%clk 0:01:30]} 14. f4 {[%clk 0:02:19]}  Bf6 {[%clk 0:01:07]} 15. Be3 {[%clk 0:02:18]}  a6 {[%clk 0:01:04]} 16. c3 {[%clk 0:02:18]}  b5 {[%clk 0:01:04]} 17. Bb3 {[%clk 0:02:18]}  Bb7 {[%clk 0:01:03]} 18. Bc2 {[%clk 0:02:18]}  g6 {[%clk 0:01:00]} 19. Rad1 {[%clk 0:02:19]}  Bc6 {[%clk 0:00:59]} 20. f5 {[%clk 0:02:19]}  Be5 {[%clk 0:00:59]} 21. f6 {[%clk 0:02:11]}  Bxh2+ {[%clk 0:00:54]} 22. Kh1 {[%clk 0:02:11]}  Be5 {[%clk 0:00:48]} 23. Bd4 {[%clk 0:02:07]}  Bg3 {[%clk 0:00:43]} 24. Qe3 {[%clk 0:02:03]}  Rae8 {[%clk 0:00:13]} 25. Qh6 {[%clk 0:02:02]} 1-0


[Site "https://www.chess.com"]

[Event "Titled Tuesday Blitz November 22 Early 2022"]
[White "Andreikin, Dmitry"]
[Black "Ozen, Bahadir"]
[WhiteFideId "4158814"]
[BlackFideId "6337058"]
[WhiteElo "2736"]
[BlackElo "2503"]
[Result "1-0"]
[Round "09"]
[TimeControl "180+1"]
[Date "2022.11.22"]
[WhiteClock "0:00:18"]
[BlackClock "0:00:02"]

1. d4 {[%clk 0:03:00]}  d5 {[%clk 0:02:58]} 2. c4 {[%clk 0:03:00]}  c6 {[%clk 0:02:58]} 3. Nf3 {[%clk 0:03:01]}  Nf6 {[%clk 0:02:58]} 4. Qc2 {[%clk 0:03:01]}  dxc4 {[%clk 0:02:54]} 5. e4 {[%clk 0:03:01]}  b5 {[%clk 0:02:54]} 6. b3 {[%clk 0:03:01]}  cxb3 {[%clk 0:02:53]} 7. axb3 {[%clk 0:03:02]}  e6 {[%clk 0:02:44]} 8. Bd3 {[%clk 0:03:01]}  Be7 {[%clk 0:02:42]} 9. O-O {[%clk 0:03:00]}  h6 {[%clk 0:02:30]} 10. Bd2 {[%clk 0:02:59]}  Bb7 {[%clk 0:02:26]} 11. Ba5 {[%clk 0:02:58]}  Qc8 {[%clk 0:02:25]} 12. Nc3 {[%clk 0:02:55]}  b4 {[%clk 0:02:05]} 13. Na4 {[%clk 0:02:46]}  Na6 {[%clk 0:02:01]} 14. Rfc1 {[%clk 0:02:42]}  O-O {[%clk 0:02:01]} 15. Ne5 {[%clk 0:02:42]}  Bd8 {[%clk 0:01:27]} 16. Bxa6 {[%clk 0:02:22]}  Bxa5 {[%clk 0:01:22]} 17. Bxb7 {[%clk 0:02:02]}  Qxb7 {[%clk 0:01:23]} 18. Nc5 {[%clk 0:02:03]}  Qb5 {[%clk 0:01:22]} 19. Nc4 {[%clk 0:01:30]}  Bc7 {[%clk 0:01:16]} 20. Na6 {[%clk 0:01:30]}  Rac8 {[%clk 0:01:09]} 21. Nxc7 {[%clk 0:01:27]}  Rxc7 {[%clk 0:01:09]} 22. Ra5 {[%clk 0:01:27]}  Qb8 {[%clk 0:01:08]} 23. Ne5 {[%clk 0:01:27]}  Rfc8 {[%clk 0:00:56]} 24. Rc5 {[%clk 0:01:21]}  Qb6 {[%clk 0:00:49]} 25. Nxc6 {[%clk 0:01:20]}  Kh8 {[%clk 0:00:46]} 26. Ne7 {[%clk 0:01:18]}  Qxc5 {[%clk 0:00:40]} 27. dxc5 {[%clk 0:01:15]}  Rxe7 {[%clk 0:00:40]} 28. c6 {[%clk 0:01:12]}  Rec7 {[%clk 0:00:40]} 29. Qc5 {[%clk 0:01:06]}  Nxe4 {[%clk 0:00:37]} 30. Qxb4 {[%clk 0:01:03]}  Nf6 {[%clk 0:00:38]} 31. g3 {[%clk 0:00:58]}  Nd5 {[%clk 0:00:38]} 32. Qa5 {[%clk 0:00:55]}  Ne7 {[%clk 0:00:36]} 33. b4 {[%clk 0:00:54]}  Rxc6 {[%clk 0:00:28]} 34. Rxc6 {[%clk 0:00:51]}  Nxc6 {[%clk 0:00:29]} 35. Qc5 {[%clk 0:00:47]}  a6 {[%clk 0:00:29]} 36. Qb6 {[%clk 0:00:48]}  Nb8 {[%clk 0:00:24]} 37. Qb7 {[%clk 0:00:47]}  Rf8 {[%clk 0:00:25]} 38. h4 {[%clk 0:00:47]}  h5 {[%clk 0:00:24]} 39. Kg2 {[%clk 0:00:45]}  Kg8 {[%clk 0:00:23]} 40. Kf3 {[%clk 0:00:45]}  Rd8 {[%clk 0:00:22]} 41. Qc7 {[%clk 0:00:43]}  Rf8 {[%clk 0:00:17]} 42. Kf4 {[%clk 0:00:43]}  g6 {[%clk 0:00:18]} 43. Kg5 {[%clk 0:00:43]}  Kg7 {[%clk 0:00:18]} 44. Kf4 {[%clk 0:00:28]}  Re8 {[%clk 0:00:15]} 45. Ke5 {[%clk 0:00:27]}  Rd8 {[%clk 0:00:13]} 46. Ke4 {[%clk 0:00:23]}  Re8 {[%clk 0:00:12]} 47. f3 {[%clk 0:00:20]}  e5 {[%clk 0:00:09]} 48. g4 {[%clk 0:00:20]}  hxg4 {[%clk 0:00:09]} 49. fxg4 {[%clk 0:00:20]}  Kg8 {[%clk 0:00:04]} 50. h5 {[%clk 0:00:21]}  gxh5 {[%clk 0:00:04]} 51. gxh5 {[%clk 0:00:22]}  Kg7 {[%clk 0:00:05]} 52. Kf5 {[%clk 0:00:20]}  e4 {[%clk 0:00:02]} 53. h6+ {[%clk 0:00:19]}  Kxh6 {[%clk 0:00:02]} 54. Qxf7 {[%clk 0:00:18]} 1-0


[Site "https://www.chess.com"]

[Event "Titled Tuesday Blitz November 22 Early 2022"]
[White "Aradhya, Garg"]
[Black "Ginzburg, Yakov"]
[WhiteFideId "25006746"]
[BlackFideId "4157176"]
[WhiteElo "2223"]
[BlackElo "2305"]
[Result "1-0"]
[Round "09"]
[TimeControl "180+1"]
[Date "2022.11.23"]
[WhiteClock "0:00:26"]
[BlackClock "0:00:05"]

1. d4 {[%clk 0:03:00]}  d5 {[%clk 0:02:58]} 2. c4 {[%clk 0:03:01]}  c6 {[%clk 0:02:58]} 3. Nc3 {[%clk 0:03:01]}  Nf6 {[%clk 0:02:58]} 4. Nf3 {[%clk 0:03:01]}  dxc4 {[%clk 0:02:58]} 5. a4 {[%clk 0:03:00]}  Bf5 {[%clk 0:02:58]} 6. Ne5 {[%clk 0:03:00]}  e6 {[%clk 0:02:59]} 7. Bg5 {[%clk 0:02:55]}  Bb4 {[%clk 0:02:41]} 8. f3 {[%clk 0:02:54]}  c5 {[%clk 0:02:36]} 9. dxc5 {[%clk 0:02:45]}  Qxd1+ {[%clk 0:02:34]} 10. Rxd1 {[%clk 0:02:44]}  Bc2 {[%clk 0:02:32]} 11. Rc1 {[%clk 0:02:43]}  Bxa4 {[%clk 0:02:23]} 12. Nxc4 {[%clk 0:02:30]}  O-O {[%clk 0:02:08]} 13. Bd2 {[%clk 0:02:23]}  Bc6 {[%clk 0:02:07]} 14. Ne4 {[%clk 0:02:23]}  Nxe4 {[%clk 0:01:58]} 15. Bxb4 {[%clk 0:02:22]}  Na6 {[%clk 0:01:57]} 16. Ba3 {[%clk 0:02:19]}  Nexc5 {[%clk 0:01:52]} 17. Ne5 {[%clk 0:02:19]}  Nb3 {[%clk 0:01:04]} 18. Rc3 {[%clk 0:02:16]}  Nd4 {[%clk 0:00:58]} 19. e3 {[%clk 0:02:09]}  Nb5 {[%clk 0:00:58]} 20. Bxb5 {[%clk 0:02:09]}  Bxb5 {[%clk 0:00:56]} 21. Bxf8 {[%clk 0:02:10]}  Kxf8 {[%clk 0:00:52]} 22. Kf2 {[%clk 0:02:10]}  Rd8 {[%clk 0:00:50]} 23. Nc4 {[%clk 0:01:43]}  Bxc4 {[%clk 0:00:44]} 24. Rxc4 {[%clk 0:01:44]}  Rd2+ {[%clk 0:00:45]} 25. Kg3 {[%clk 0:01:45]}  Rxb2 {[%clk 0:00:44]} 26. Rd1 {[%clk 0:01:30]}  Ke7 {[%clk 0:00:44]} 27. Rc8 {[%clk 0:01:30]}  Ra2 {[%clk 0:00:33]} 28. e4 {[%clk 0:01:17]}  f5 {[%clk 0:00:28]} 29. e5 {[%clk 0:01:14]}  Ra5 {[%clk 0:00:25]} 30. Rg8 {[%clk 0:00:50]}  Kf7 {[%clk 0:00:22]} 31. Ra8 {[%clk 0:00:50]}  Nc5 {[%clk 0:00:21]} 32. Rdd8 {[%clk 0:00:45]}  Ra4 {[%clk 0:00:10]} 33. Rdc8 {[%clk 0:00:44]}  b6 {[%clk 0:00:10]} 34. Rc7+ {[%clk 0:00:43]}  Kg6 {[%clk 0:00:10]} 35. Rg8 {[%clk 0:00:42]}  f4+ {[%clk 0:00:09]} 36. Kg4 {[%clk 0:00:36]}  h5+ {[%clk 0:00:10]} 37. Kh4 {[%clk 0:00:37]}  Kf5 {[%clk 0:00:11]} 38. Rgxg7 {[%clk 0:00:36]}  Kxe5 {[%clk 0:00:11]} 39. Rxa7 {[%clk 0:00:35]}  Rd4 {[%clk 0:00:10]} 40. Kxh5 {[%clk 0:00:32]}  Rd2 {[%clk 0:00:10]} 41. h4 {[%clk 0:00:28]}  Kd5 {[%clk 0:00:07]} 42. Rad7+ {[%clk 0:00:25]}  Nxd7 {[%clk 0:00:05]} 43. Rxd7+ {[%clk 0:00:26]} 1-0


[Site "https://www.chess.com"]

[Event "Titled Tuesday Blitz November 22 Early 2022"]
[White "Artemenko, Oleg"]
[Black "Salman, Pavel"]
[WhiteFideId "14201798"]
[BlackFideId "24153753"]
[WhiteElo "2287"]
[BlackElo "2187"]
[Result "1-0"]
[Round "09"]
[TimeControl "180+1"]
[Date "2022.11.23"]
[WhiteClock "0:01:42"]
[BlackClock "0:00:09"]

1. d4 {[%clk 0:03:00]}  Nf6 {[%clk 0:02:59]} 2. Nc3 {[%clk 0:03:01]}  g6 {[%clk 0:02:58]} 3. e4 {[%clk 0:02:57]}  d6 {[%clk 0:02:58]} 4. f4 {[%clk 0:02:55]}  Bg7 {[%clk 0:02:58]} 5. Bd3 {[%clk 0:02:56]}  c5 {[%clk 0:02:51]} 6. dxc5 {[%clk 0:02:55]}  dxc5 {[%clk 0:02:41]} 7. e5 {[%clk 0:02:55]}  Ng4 {[%clk 0:02:31]} 8. Nf3 {[%clk 0:02:51]}  O-O {[%clk 0:02:27]} 9. h3 {[%clk 0:02:51]}  c4 {[%clk 0:02:25]} 10. Bxc4 {[%clk 0:02:44]}  Nh6 {[%clk 0:02:02]} 11. Qe2 {[%clk 0:02:43]}  Nf5 {[%clk 0:02:01]} 12. Qf2 {[%clk 0:02:39]}  Nc6 {[%clk 0:01:53]} 13. g4 {[%clk 0:02:39]}  Nfd4 {[%clk 0:01:53]} 14. Be3 {[%clk 0:02:39]}  Nxf3+ {[%clk 0:01:43]} 15. Qxf3 {[%clk 0:02:40]}  e6 {[%clk 0:01:35]} 16. Rd1 {[%clk 0:02:31]}  Qa5 {[%clk 0:01:34]} 17. h4 {[%clk 0:02:30]}  Qb4 {[%clk 0:01:29]} 18. Bb3 {[%clk 0:02:30]}  f6 {[%clk 0:00:52]} 19. a3 {[%clk 0:02:23]}  Qa5 {[%clk 0:00:49]} 20. exf6 {[%clk 0:02:17]}  Bxf6 {[%clk 0:00:50]} 21. Qe4 {[%clk 0:02:10]}  Bxc3+ {[%clk 0:00:48]} 22. bxc3 {[%clk 0:02:11]}  Qxc3+ {[%clk 0:00:49]} 23. Ke2 {[%clk 0:02:10]}  a5 {[%clk 0:00:35]} 24. Rd3 {[%clk 0:02:05]}  Qg7 {[%clk 0:00:32]} 25. h5 {[%clk 0:02:03]}  a4 {[%clk 0:00:26]} 26. Ba2 {[%clk 0:01:56]}  Ra5 {[%clk 0:00:20]} 27. hxg6 {[%clk 0:01:56]}  Qxg6 {[%clk 0:00:20]} 28. f5 {[%clk 0:01:56]}  Qg7 {[%clk 0:00:17]} 29. fxe6 {[%clk 0:01:50]}  Ne7 {[%clk 0:00:15]} 30. c3 {[%clk 0:01:45]}  Rg5 {[%clk 0:00:10]} 31. Bxg5 {[%clk 0:01:44]}  Ng6 {[%clk 0:00:10]} 32. e7+ {[%clk 0:01:43]}  Kh8 {[%clk 0:00:08]} 33. exf8=Q+ {[%clk 0:01:43]}  Nxf8 {[%clk 0:00:09]} 34. Qd4 {[%clk 0:01:42]} 1-0


[Site "https://www.chess.com"]

[Event "Titled Tuesday Blitz November 22 Early 2022"]
[White "Averjanov, Alexey"]
[Black "Kulkarni, Vikramaditya"]
[WhiteFideId "14109867"]
[BlackFideId "5009847"]
[WhiteElo "2605"]
[BlackElo "2273"]
[Result "1-0"]
[Round "09"]
[TimeControl "180+1"]
[Date "2022.11.23"]
[WhiteClock "0:00:29"]
[BlackClock "0:01:12"]

1. d4 {[%clk 0:03:00]}  d6 {[%clk 0:02:57]} 2. c4 {[%clk 0:03:01]}  e5 {[%clk 0:02:56]} 3. Nc3 {[%clk 0:03:01]}  exd4 {[%clk 0:02:55]} 4. Qxd4 {[%clk 0:03:02]}  Nc6 {[%clk 0:02:55]} 5. Qd2 {[%clk 0:03:02]}  Nf6 {[%clk 0:02:55]} 6. b3 {[%clk 0:03:02]}  a5 {[%clk 0:02:55]} 7. Bb2 {[%clk 0:03:01]}  a4 {[%clk 0:02:54]} 8. Rc1 {[%clk 0:03:01]}  axb3 {[%clk 0:02:52]} 9. axb3 {[%clk 0:03:02]}  Be7 {[%clk 0:02:51]} 10. e4 {[%clk 0:03:01]}  O-O {[%clk 0:02:51]} 11. Bd3 {[%clk 0:03:01]}  Na5 {[%clk 0:02:44]} 12. Bc2 {[%clk 0:02:59]}  Nd7 {[%clk 0:02:42]} 13. Nge2 {[%clk 0:02:57]}  Nc5 {[%clk 0:02:41]} 14. Qd1 {[%clk 0:02:50]}  Nc6 {[%clk 0:02:35]} 15. Nd5 {[%clk 0:02:46]}  Re8 {[%clk 0:02:27]} 16. O-O {[%clk 0:02:44]}  Bf8 {[%clk 0:02:26]} 17. Nec3 {[%clk 0:02:32]}  Ne6 {[%clk 0:02:12]} 18. f4 {[%clk 0:02:28]}  Ncd4 {[%clk 0:02:08]} 19. f5 {[%clk 0:02:03]}  Nxc2 {[%clk 0:02:02]} 20. fxe6 {[%clk 0:01:54]}  fxe6 {[%clk 0:02:02]} 21. Rxc2 {[%clk 0:01:52]}  exd5 {[%clk 0:02:01]} 22. Nxd5 {[%clk 0:01:47]}  c6 {[%clk 0:02:01]} 23. Nf4 {[%clk 0:01:12]}  Qb6+ {[%clk 0:01:52]} 24. Rcf2 {[%clk 0:01:07]}  Rxe4 {[%clk 0:01:48]} 25. Nd5 {[%clk 0:00:45]}  cxd5 {[%clk 0:01:43]} 26. Qxd5+ {[%clk 0:00:46]}  Kh8 {[%clk 0:01:14]} 27. Bd4 {[%clk 0:00:36]}  Be6 {[%clk 0:01:12]} 28. Qxe4 {[%clk 0:00:29]} 1-0


[Site "https://www.chess.com"]

[Event "Titled Tuesday Blitz November 22 Early 2022"]
[White "Bristy, Mukherjee"]
[Black "Nanditha, V"]
[WhiteFideId "25077325"]
[BlackFideId "46626697"]
[WhiteElo "1715"]
[BlackElo "1564"]
[Result "1-0"]
[Round "09"]
[TimeControl "180+1"]
[Date "2022.11.23"]
[WhiteClock "0:02:10"]
[BlackClock "0:00:16"]

1. d4 {[%clk 0:03:00]}  d5 {[%clk 0:02:52]} 2. Bg5 {[%clk 0:03:00]}  h6 {[%clk 0:02:47]} 3. Bh4 {[%clk 0:03:00]}  g5 {[%clk 0:02:47]} 4. Bg3 {[%clk 0:02:59]}  Bg7 {[%clk 0:02:47]} 5. e3 {[%clk 0:02:59]}  Nf6 {[%clk 0:02:47]} 6. c4 {[%clk 0:02:59]}  c6 {[%clk 0:02:45]} 7. Nc3 {[%clk 0:02:59]}  Bg4 {[%clk 0:02:32]} 8. Qb3 {[%clk 0:02:58]}  Qb6 {[%clk 0:02:31]} 9. cxd5 {[%clk 0:02:55]}  cxd5 {[%clk 0:02:06]} 10. Bb5+ {[%clk 0:02:39]}  Nbd7 {[%clk 0:01:37]} 11. Nxd5 {[%clk 0:02:24]}  Nxd5 {[%clk 0:01:26]} 12. Qxd5 {[%clk 0:02:22]}  Qa5+ {[%clk 0:01:25]} 13. Kf1 {[%clk 0:02:21]}  Qd2 {[%clk 0:00:57]} 14. Qxb7 {[%clk 0:02:13]}  Rd8 {[%clk 0:00:20]} 15. Nf3 {[%clk 0:02:12]}  O-O {[%clk 0:00:16]} 16. Nxd2 {[%clk 0:02:10]} 1-0


[Site "https://www.chess.com"]

[Event "Titled Tuesday Blitz November 22 Early 2022"]
[White "Caruana, Fabiano"]
[Black "Chigaev, Maksim"]
[WhiteFideId "2020009"]
[BlackFideId "4108116"]
[WhiteElo "2847"]
[BlackElo "2541"]
[Result "0-1"]
[Round "09"]
[TimeControl "180+1"]
[Date "2022.11.22"]
[WhiteClock "0:00:10"]
[BlackClock "0:00:50"]

1. e4 {[%clk 0:03:00]}  c5 {[%clk 0:02:59]} 2. Nf3 {[%clk 0:03:00]}  e6 {[%clk 0:03:00]} 3. b3 {[%clk 0:02:59]}  a6 {[%clk 0:02:59]} 4. Bb2 {[%clk 0:03:00]}  Nc6 {[%clk 0:03:00]} 5. g3 {[%clk 0:02:57]}  d5 {[%clk 0:02:56]} 6. exd5 {[%clk 0:02:58]}  exd5 {[%clk 0:02:56]} 7. Qe2+ {[%clk 0:02:57]}  Be6 {[%clk 0:02:51]} 8. Bg2 {[%clk 0:02:57]}  d4 {[%clk 0:02:52]} 9. O-O {[%clk 0:02:57]}  Be7 {[%clk 0:02:52]} 10. Ne5 {[%clk 0:02:53]}  Nxe5 {[%clk 0:02:52]} 11. Qxe5 {[%clk 0:02:54]}  Rb8 {[%clk 0:02:53]} 12. c3 {[%clk 0:02:39]}  b6 {[%clk 0:02:47]} 13. cxd4 {[%clk 0:02:32]}  Bf6 {[%clk 0:02:41]} 14. Qe2 {[%clk 0:02:32]}  Bxd4 {[%clk 0:02:23]} 15. Bxd4 {[%clk 0:02:30]}  Qxd4 {[%clk 0:01:59]} 16. Nc3 {[%clk 0:02:29]}  Nf6 {[%clk 0:01:57]} 17. Qxa6 {[%clk 0:02:27]}  O-O {[%clk 0:01:58]} 18. Rac1 {[%clk 0:02:08]}  h5 {[%clk 0:01:55]} 19. h3 {[%clk 0:01:57]}  h4 {[%clk 0:01:33]} 20. g4 {[%clk 0:01:56]}  Qxd2 {[%clk 0:01:33]} 21. Qe2 {[%clk 0:01:48]}  Qf4 {[%clk 0:01:16]} 22. Rfe1 {[%clk 0:01:41]}  Rfd8 {[%clk 0:01:15]} 23. Rcd1 {[%clk 0:01:32]}  Rd4 {[%clk 0:01:10]} 24. Rxd4 {[%clk 0:01:29]}  cxd4 {[%clk 0:01:11]} 25. Ne4 {[%clk 0:01:29]}  Rd8 {[%clk 0:01:11]} 26. Qd2 {[%clk 0:01:25]}  Qxd2 {[%clk 0:01:06]} 27. Nxd2 {[%clk 0:01:26]}  Nd5 {[%clk 0:01:07]} 28. Nf3 {[%clk 0:01:02]}  Nf4 {[%clk 0:01:05]} 29. Nxh4 {[%clk 0:01:02]}  d3 {[%clk 0:00:59]} 30. Bf1 {[%clk 0:01:00]}  Ra8 {[%clk 0:00:58]} 31. Rd1 {[%clk 0:00:15]}  Rxa2 {[%clk 0:00:56]} 32. Bxd3 {[%clk 0:00:15]}  Nxh3+ {[%clk 0:00:48]} 33. Kg2 {[%clk 0:00:12]}  Nxf2 {[%clk 0:00:49]} 34. Bb1 {[%clk 0:00:12]}  Nxd1+ {[%clk 0:00:49]} 35. Bxa2 {[%clk 0:00:12]}  Nc3 {[%clk 0:00:50]} 36. Kf3 {[%clk 0:00:10]}  Nxa2 {[%clk 0:00:50]} 0-1


[Site "https://www.chess.com"]

[Event "Titled Tuesday Blitz November 22 Early 2022"]
[White "Castillo Pena, Patricia Evarista"]
[Black "Kriti Mayur Patel"]
[WhiteFideId "6412106"]
[BlackFideId "35061780"]
[WhiteElo "1919"]
[BlackElo "1306"]
[Result "0-1"]
[Round "09"]
[TimeControl "180+1"]
[Date "2022.11.23"]
[WhiteClock "0:00:02"]
[BlackClock "0:00:11"]

1. d4 {[%clk 0:02:56]}  d5 {[%clk 0:02:59]} 2. Nf3 {[%clk 0:02:55]}  Nf6 {[%clk 0:02:59]} 3. e3 {[%clk 0:02:54]}  e6 {[%clk 0:03:00]} 4. Bd3 {[%clk 0:02:54]}  Be7 {[%clk 0:03:00]} 5. O-O {[%clk 0:02:54]}  O-O {[%clk 0:03:01]} 6. b3 {[%clk 0:02:53]}  c5 {[%clk 0:03:01]} 7. Bb2 {[%clk 0:02:53]}  Nc6 {[%clk 0:03:01]} 8. Nbd2 {[%clk 0:02:53]}  b6 {[%clk 0:03:01]} 9. Ne5 {[%clk 0:02:52]}  Bb7 {[%clk 0:03:01]} 10. f4 {[%clk 0:02:51]}  Nxe5 {[%clk 0:02:57]} 11. fxe5 {[%clk 0:02:51]}  Nd7 {[%clk 0:02:57]} 12. Rf3 {[%clk 0:02:35]}  f5 {[%clk 0:02:53]} 13. exf6 {[%clk 0:02:30]}  Bxf6 {[%clk 0:02:42]} 14. Bxh7+ {[%clk 0:02:11]}  Kxh7 {[%clk 0:02:29]} 15. Rh3+ {[%clk 0:02:10]}  Kg8 {[%clk 0:02:07]} 16. Qh5 {[%clk 0:02:09]}  Bg5 {[%clk 0:02:02]} 17. dxc5 {[%clk 0:01:57]}  bxc5 {[%clk 0:01:59]} 18. Qh7+ {[%clk 0:01:52]}  Kf7 {[%clk 0:01:58]} 19. Qxg7+ {[%clk 0:01:51]}  Ke8 {[%clk 0:01:58]} 20. Qg6+ {[%clk 0:01:48]}  Ke7 {[%clk 0:01:56]} 21. Qxg5+ {[%clk 0:01:42]}  Kd6 {[%clk 0:01:55]} 22. Qg3+ {[%clk 0:01:35]}  Kc6 {[%clk 0:01:53]} 23. c4 {[%clk 0:01:29]}  Rg8 {[%clk 0:01:44]} 24. cxd5+ {[%clk 0:01:24]}  exd5 {[%clk 0:01:42]} 25. Rh6+ {[%clk 0:01:23]}  Kb5 {[%clk 0:01:38]} 26. a4+ {[%clk 0:01:21]}  Kb4 {[%clk 0:01:34]} 27. Qf4+ {[%clk 0:01:18]}  d4 {[%clk 0:01:32]} 28. exd4 {[%clk 0:01:16]}  Rxg2+ {[%clk 0:01:29]} 29. Kf1 {[%clk 0:01:16]}  Qf8 {[%clk 0:01:25]} 30. Ba3+ {[%clk 0:01:11]}  Ka5 {[%clk 0:01:05]} 31. b4+ {[%clk 0:00:40]}  cxb4 {[%clk 0:00:33]} 32. Nc4+ {[%clk 0:00:36]}  Kxa4 {[%clk 0:00:31]} 33. Bc1+ {[%clk 0:00:18]}  Kb3 {[%clk 0:00:18]} 34. Rh3+ {[%clk 0:00:13]}  Kxc4 {[%clk 0:00:17]} 35. Qxf8 {[%clk 0:00:05]}  Rxf8+ {[%clk 0:00:17]} 36. Ke1 {[%clk 0:00:05]}  Re8+ {[%clk 0:00:12]} 37. Kd1 {[%clk 0:00:03]}  Rg1+ {[%clk 0:00:11]} 38. Kc2 {[%clk 0:00:03]}  Re2+ {[%clk 0:00:11]} 39. Kb1 {[%clk 0:00:02]}  Be4+ {[%clk 0:00:11]} 0-1


[Site "https://www.chess.com"]

[Event "Titled Tuesday Blitz November 22 Early 2022"]
[White "Ciuffoletti, Paolo"]
[Black "Hartikainen, Jarmo"]
[WhiteFideId "807630"]
[BlackFideId "503134"]
[WhiteElo "2143"]
[BlackElo "2209"]
[Result "1-0"]
[Round "09"]
[TimeControl "180+1"]
[Date "2022.11.23"]
[WhiteClock "0:00:13"]
[BlackClock "0:00:18"]

1. e4 {[%clk 0:03:00]}  c5 {[%clk 0:02:59]} 2. d4 {[%clk 0:03:00]}  cxd4 {[%clk 0:02:59]} 3. c3 {[%clk 0:03:00]}  d5 {[%clk 0:02:59]} 4. exd5 {[%clk 0:02:59]}  Qxd5 {[%clk 0:02:59]} 5. cxd4 {[%clk 0:02:59]}  Nc6 {[%clk 0:02:59]} 6. Nf3 {[%clk 0:03:00]}  Bg4 {[%clk 0:02:59]} 7. Nc3 {[%clk 0:03:00]}  Bxf3 {[%clk 0:02:59]} 8. gxf3 {[%clk 0:03:00]}  Qxd4 {[%clk 0:02:58]} 9. Qxd4 {[%clk 0:03:01]}  Nxd4 {[%clk 0:02:59]} 10. Nb5 {[%clk 0:03:01]}  Nc2+ {[%clk 0:02:59]} 11. Kd1 {[%clk 0:03:01]}  Nxa1 {[%clk 0:02:59]} 12. Nc7+ {[%clk 0:03:01]}  Kd8 {[%clk 0:02:45]} 13. Nxa8 {[%clk 0:03:01]}  g6 {[%clk 0:02:45]} 14. Be3 {[%clk 0:03:00]}  Bh6 {[%clk 0:02:18]} 15. Bxa7 {[%clk 0:02:35]}  Nf6 {[%clk 0:02:15]} 16. Bb5 {[%clk 0:02:29]}  Nd5 {[%clk 0:02:02]} 17. Ke2 {[%clk 0:02:00]}  Nf4+ {[%clk 0:01:46]} 18. Kd2 {[%clk 0:01:16]}  Nd5+ {[%clk 0:01:41]} 19. Kd3 {[%clk 0:01:11]}  Nf4+ {[%clk 0:01:33]} 20. Kc3 {[%clk 0:01:02]}  Bg7+ {[%clk 0:01:29]} 21. Bd4 {[%clk 0:01:01]}  Ne2+ {[%clk 0:01:25]} 22. Bxe2 {[%clk 0:01:00]}  e5 {[%clk 0:01:21]} 23. Bb6+ {[%clk 0:00:58]}  Ke7 {[%clk 0:01:18]} 24. Nc7 {[%clk 0:00:55]}  e4+ {[%clk 0:01:11]} 25. Bd4 {[%clk 0:00:49]}  Bxd4+ {[%clk 0:01:05]} 26. Kxd4 {[%clk 0:00:48]}  Nc2+ {[%clk 0:01:03]} 27. Kxe4 {[%clk 0:00:47]}  f5+ {[%clk 0:00:58]} 28. Ke5 {[%clk 0:00:40]}  Nb4 {[%clk 0:00:51]} 29. Nd5+ {[%clk 0:00:37]}  Nxd5 {[%clk 0:00:51]} 30. Kxd5 {[%clk 0:00:38]}  Rd8+ {[%clk 0:00:50]} 31. Kc4 {[%clk 0:00:34]}  Rd2 {[%clk 0:00:50]} 32. Re1 {[%clk 0:00:32]}  Rxb2 {[%clk 0:00:50]} 33. a4 {[%clk 0:00:31]}  Ra2 {[%clk 0:00:48]} 34. Bd1+ {[%clk 0:00:29]}  Kd6 {[%clk 0:00:48]} 35. Re2 {[%clk 0:00:27]}  Ra3 {[%clk 0:00:46]} 36. Rd2+ {[%clk 0:00:26]}  Kc6 {[%clk 0:00:46]} 37. Kb4 {[%clk 0:00:25]}  Ra1 {[%clk 0:00:45]} 38. Bb3 {[%clk 0:00:25]}  Rh1 {[%clk 0:00:42]} 39. a5 {[%clk 0:00:21]}  Rxh2 {[%clk 0:00:42]} 40. Bd5+ {[%clk 0:00:21]}  Kc7 {[%clk 0:00:37]} 41. Kb5 {[%clk 0:00:21]}  Rh1 {[%clk 0:00:34]} 42. Rc2+ {[%clk 0:00:20]}  Kd6 {[%clk 0:00:34]} 43. Bxb7 {[%clk 0:00:20]}  Rb1+ {[%clk 0:00:33]} 44. Ka6 {[%clk 0:00:19]}  h5 {[%clk 0:00:34]} 45. Ka7 {[%clk 0:00:18]}  h4 {[%clk 0:00:33]} 46. Rc6+ {[%clk 0:00:18]}  Kd7 {[%clk 0:00:32]} 47. Rxg6 {[%clk 0:00:18]}  Rb2 {[%clk 0:00:22]} 48. Rh6 {[%clk 0:00:17]}  Rxf2 {[%clk 0:00:20]} 49. Rxh4 {[%clk 0:00:18]}  Kd6 {[%clk 0:00:21]} 50. a6 {[%clk 0:00:17]}  Ke5 {[%clk 0:00:21]} 51. Kb8 {[%clk 0:00:17]}  Ra2 {[%clk 0:00:20]} 52. a7 {[%clk 0:00:17]}  Rxa7 {[%clk 0:00:20]} 53. Kxa7 {[%clk 0:00:17]}  f4 {[%clk 0:00:20]} 54. Kb6 {[%clk 0:00:17]}  Kd4 {[%clk 0:00:19]} 55. Rxf4+ {[%clk 0:00:16]}  Ke3 {[%clk 0:00:20]} 56. Rf6 {[%clk 0:00:16]}  Kd4 {[%clk 0:00:21]} 57. f4 {[%clk 0:00:16]}  Ke3 {[%clk 0:00:21]} 58. f5 {[%clk 0:00:16]}  Kd4 {[%clk 0:00:22]} 59. Re6 {[%clk 0:00:16]}  Kc4 {[%clk 0:00:19]} 60. f6 {[%clk 0:00:16]}  Kb4 {[%clk 0:00:18]} 61. f7 {[%clk 0:00:16]}  Ka4 {[%clk 0:00:18]} 62. f8=Q {[%clk 0:00:16]}  Kb3 {[%clk 0:00:18]} 63. Re3+ {[%clk 0:00:14]}  Kc4 {[%clk 0:00:18]} 64. Qf4# {[%clk 0:00:13]} 1-0


[Site "https://www.chess.com"]